[Event "Swedish Chess Championship 2019: Veteran-SM 65+"]
[Site "Stiga Sports Arena, Arenatorget 1, Eskilstuna, Sweden"]
[Date "2019.07.13"]
[Round "8.3"]
[White "Gromark, Jonas"]
[Black "Amnell, Mats"]
[Result "0-1"]
[TimeControl "90 minutes for 40 moves + 30 minutes for the rest of the game + 30 seconds per move from move one"]
[WhiteFideId "137122733"]
[BlackFideId "1717316"]
[WhiteElo "1833"]
[BlackElo "1770"]

1. e4 {[%clk 01:30:47]} {[%emt 00:00:23]} d6 {[%clk 01:30:42]} {[%emt
00:00:31]} 2. Nc3 {[%clk 01:30:42]} {[%emt 00:01:52]} Nf6 {[%clk 01:30:36]}
{[%emt 00:02:05]} 3. f4 {[%clk 01:30:32]} {[%emt 00:02:08]} g6 {[%clk
01:30:31]} {[%emt 00:02:04]} 4. Nf3 {[%clk 01:30:40]} {[%emt 00:01:21]} Bg7
{[%clk 01:30:36]} {[%emt 00:01:33]} 5. Bc4 {[%clk 01:30:18]} {[%emt 00:03:07]}
O-O {[%clk 01:30:22]} {[%emt 00:02:32]} 6. d3 {[%clk 01:28:59]} {[%emt
00:06:20]} c6 {[%clk 01:29:23]} {[%emt 00:01:45]} 7. O-O {[%clk 01:28:54]} b5
{[%clk 01:28:13]} 8. Bb3 {[%clk 01:28:30]} a5 {[%clk 01:27:22]} 9. a4 {[%clk
01:28:39]} b4 {[%clk 01:27:09]} 10. Ne2 {[%clk 01:28:54]} Nbd7 {[%clk
01:21:58]} 11. Kh1 {[%clk 01:26:25]} Nc5 {[%clk 01:13:20]} {[%emt 00:06:31]} 12.
Qe1 {[%clk 01:23:21]} {[%emt 00:03:33]} Nxb3 {[%clk 01:12:48]} {[%emt
00:01:03]} 13. cxb3 {[%clk 01:23:44]} {[%emt 00:00:07]} Ba6 {[%clk 01:10:16]}
{[%emt 00:03:03]} 14. Qd1 {[%clk 01:08:59]} {[%emt 00:15:14]} Nd7 {[%clk
01:04:27]} {[%emt 00:06:20]} 15. Qc2 {[%clk 01:02:34]} {[%emt 00:06:55]} Qb6
{[%clk 00:59:39]} {[%emt 00:05:17]} 16. Ne1 {[%clk 00:47:11]} {[%emt 00:15:52]}
f5 {[%clk 00:51:15]} {[%emt 00:08:56]} 17. Rf3 {[%clk 00:43:27]} {[%emt
00:04:13]} e5 {[%clk 00:40:28]} {[%emt 00:11:18]} 18. Be3 {[%clk 00:41:45]}
{[%emt 00:02:11]} c5 {[%clk 00:39:14]} {[%emt 00:01:44]} 19. Rg3 {[%clk
00:34:36]} {[%emt 00:07:39]} fxe4 {[%clk 00:38:52]} {[%emt 00:00:53]} 20. Rd1
{[%clk 00:25:11]} {[%emt 00:09:54]} exf4 {[%clk 00:30:16]} {[%emt 00:09:06]} 21.
Nxf4 {[%clk 00:24:29]} {[%emt 00:01:12]} Be5 {[%clk 00:24:51]} {[%emt
00:05:55]} 22. Qd2 {[%clk 00:20:28]} {[%emt 00:04:31]} Bxf4 {[%clk 00:22:04]}
{[%emt 00:03:17]} 23. Bxf4 {[%clk 00:19:49]} {[%emt 00:01:09]} Rxf4 {[%clk
00:20:59]} {[%emt 00:01:35]} 24. h3 {[%clk 00:12:57]} {[%emt 00:07:22]} Rf1+
{[%clk 00:19:22]} {[%emt 00:02:07]} 25. Kh2 {[%clk 00:13:15]} {[%emt 00:00:11]}
c4 {[%clk 00:18:11]} {[%emt 00:01:42]} 26. d4 {[%clk 00:11:15]} {[%emt
00:02:30]} d5 {[%clk 00:17:42]} {[%emt 00:00:59]} 27. Qg5 {[%clk 00:08:17]}
{[%emt 00:03:27]} Nf6 {[%clk 00:14:08]} {[%emt 00:04:04]} 28. h4 {[%clk
00:07:18]} {[%emt 00:01:29]} Qd6 {[%clk 00:08:46]} {[%emt 00:05:52]} 29. h5
{[%clk 00:06:33]} {[%emt 00:01:15]} Nxh5 {[%clk 00:08:28]} {[%emt 00:00:47]} 30.
Qxh5 {[%clk 00:06:18]} {[%emt 00:00:46]} Qxg3+ {[%clk 00:08:45]} {[%emt
00:00:13]} 0-1

[Event "Swedish Chess Championship 2019: Veteran-SM 65+"]
[Site "Stiga Sports Arena, Arenatorget 1, Eskilstuna, Sweden"]
[Date "2019.07.13"]
[Round "8.4"]
[White "Gajic, Zoran"]
[Black "Lagerborg, Krister"]
[Result "0-1"]
[TimeControl "90 minutes for 40 moves + 30 minutes for the rest of the game + 30 seconds per move from move one"]
[WhiteFideId "1718304"]
[BlackFideId "1712411"]
[WhiteElo "1936"]
[BlackElo "2129"]

1. d4 {[%clk 01:30:56]} {[%emt 00:00:05]} Nf6 {[%clk 01:30:53]} {[%emt
00:00:12]} 2. Nf3 {[%clk 01:31:20]} {[%emt 00:00:12]} g6 {[%clk 01:31:06]}
{[%emt 00:00:37]} 3. Bg5 {[%clk 01:31:44]} {[%emt 00:00:15]} Bg7 {[%clk
01:31:29]} {[%emt 00:00:17]} 4. Nbd2 {[%clk 01:32:08]} {[%emt 00:00:20]} d6
{[%clk 01:30:25]} {[%emt 00:05:05]} 5. c3 {[%clk 01:31:49]} {[%emt 00:02:59]}
c6 {[%clk 01:30:10]} {[%emt 00:02:45]} 6. e4 {[%clk 01:32:12]} {[%emt
00:00:27]} Qc7 {[%clk 01:30:02]} {[%emt 00:02:17]} 7. Bc4 {[%clk 01:30:43]}
{[%emt 00:06:49]} e5 {[%clk 01:26:13]} {[%emt 00:03:31]} 8. dxe5 {[%clk
01:27:44]} dxe5 {[%clk 01:26:40]} 9. Qe2 {[%clk 01:27:47]} Nbd7 {[%clk
01:24:48]} 10. h3 {[%clk 01:24:57]} b5 {[%clk 01:22:47]} 11. Bb3 {[%clk
01:25:09]} Nc5 {[%clk 01:22:35]} 12. Bc2 {[%clk 01:25:08]} O-O {[%clk
01:21:23]} {[%emt 00:00:38]} 13. a4 {[%clk 01:23:53]} {[%emt 00:01:46]} a6
{[%clk 01:19:38]} {[%emt 00:02:15]} 14. axb5 {[%clk 01:24:00]} {[%emt
00:00:23]} cxb5 {[%clk 01:19:59]} {[%emt 00:00:09]} 15. O-O {[%clk 01:23:59]}
{[%emt 00:00:31]} Bb7 {[%clk 01:19:19]} {[%emt 00:01:10]} 16. Qe3 {[%clk
01:20:09]} {[%emt 00:04:20]} Rfe8 {[%clk 01:17:57]} {[%emt 00:01:52]} 17. Rfe1
{[%clk 01:14:32]} {[%emt 00:06:07]} Rad8 {[%clk 01:16:54]} {[%emt 00:01:32]} 18.
Nf1 {[%clk 01:02:20]} {[%emt 00:12:42]} Qc6 {[%clk 01:11:29]} {[%emt 00:05:55]}
19. Ng3 {[%clk 01:02:39]} {[%emt 00:00:32]} Qc7 {[%clk 01:04:39]} {[%emt
00:06:59]} 20. h4 {[%clk 00:59:59]} {[%emt 00:03:10]} h5 {[%clk 00:59:59]}
{[%emt 00:05:10]} 21. Bh6 {[%clk 00:59:27]} {[%emt 00:01:03]} Ng4 {[%clk
00:59:47]} {[%emt 00:00:42]} 0-1

[Event "Swedish Chess Championship 2019: Veteran-SM 65+"]
[Site "Stiga Sports Arena, Arenatorget 1, Eskilstuna, Sweden"]
[Date "2019.07.14"]
[Round "9.1"]
[White "Svensson, Hakan"]
[Black "Andersson, Kjell-Ake"]
[Result "0-1"]
[TimeControl "90 minutes for 40 moves + 30 minutes for the rest of the game + 30 seconds per move from move one"]
[WhiteFideId "1714201"]
[BlackFideId "1713825"]
[WhiteElo "2056"]
[BlackElo "1859"]

1. d4 {[%clk 01:30:29]} {[%emt 00:00:30]} Nf6 {[%clk 01:30:12]} {[%emt
00:00:47]} 2. Bg5 {[%clk 01:30:50]} {[%emt 00:00:10]} e6 {[%clk 01:30:34]}
{[%emt 00:00:17]} 3. Nf3 {[%clk 01:30:19]} {[%emt 00:02:25]} Be7 {[%clk
01:30:02]} {[%emt 00:00:02]} 4. Nbd2 {[%clk 01:30:20]} d5 {[%clk 01:29:16]}
{[%emt 00:01:12]} 5. e3 {[%clk 01:30:41]} {[%emt 00:00:09]} Nbd7 {[%clk
01:25:11]} {[%emt 00:04:35]} 6. Bd3 {[%clk 01:28:36]} {[%emt 00:02:36]} b6
{[%clk 01:25:01]} {[%emt 00:00:40]} 7. O-O {[%clk 01:23:14]} {[%emt 00:05:51]}
Bb7 {[%clk 01:22:58]} {[%emt 00:02:32]} 8. c3 {[%clk 01:22:59]} {[%emt
00:00:48]} Ne4 {[%clk 01:20:59]} {[%emt 00:02:28]} 9. Bxe7 {[%clk 01:22:50]}
{[%emt 00:00:39]} Qxe7 {[%clk 01:21:18]} {[%emt 00:00:11]} 10. Qe2 {[%clk
01:22:01]} {[%emt 00:01:18]} O-O {[%clk 01:18:29]} {[%emt 00:03:18]} 11. Ne5
{[%clk 01:21:23]} {[%emt 00:01:08]} Nxd2 {[%clk 01:16:56]} {[%emt 00:02:05]} 12.
Qxd2 {[%clk 01:21:29]} {[%emt 00:00:24]} Nxe5 {[%clk 01:16:15]} {[%emt
00:01:11]} 13. dxe5 {[%clk 01:21:54]} {[%emt 00:00:05]} c5 {[%clk 01:15:04]}
{[%emt 00:01:41]} 14. f4 {[%clk 01:20:28]} {[%emt 00:01:56]} a5 {[%clk
01:14:13]} {[%emt 00:01:22]} 15. Qe2 {[%clk 01:19:56]} {[%emt 00:01:02]} c4
{[%clk 01:12:01]} {[%emt 00:02:41]} 16. Bc2 {[%clk 01:19:09]} {[%emt 00:01:17]}
b5 {[%clk 01:10:51]} {[%emt 00:01:40]} 17. Qh5 {[%clk 01:09:36]} {[%emt
00:10:02]} g6 {[%clk 01:06:31]} {[%emt 00:04:50]} 18. Qh6 {[%clk 01:08:15]}
{[%emt 00:01:52]} f6 {[%clk 00:58:14]} {[%emt 00:08:45]} 19. exf6 {[%clk
01:02:40]} {[%emt 00:06:06]} Rxf6 {[%clk 00:56:27]} {[%emt 00:02:15]} 20. Rae1
{[%clk 01:02:20]} {[%emt 00:00:52]} Raf8 {[%clk 00:51:54]} {[%emt 00:05:03]} 21.
Qg5 {[%clk 00:51:43]} {[%emt 00:11:08]} e5 {[%clk 00:46:05]} {[%emt 00:06:19]}
22. f5 {[%clk 00:46:41]} {[%emt 00:05:32]} e4 {[%clk 00:41:10]} {[%emt
00:05:24]} 23. Rf4 {[%clk 00:20:07]} {[%emt 00:27:03]} Qe5 {[%clk 00:28:40]}
{[%emt 00:13:01]} 24. Ref1 {[%clk 00:13:51]} {[%emt 00:06:47]} Kg7 {[%clk
00:27:11]} {[%emt 00:01:58]} 25. Rh4 {[%clk 00:14:05]} {[%emt 00:00:17]} Kh8
{[%clk 00:22:03]} {[%emt 00:05:34]} 26. Rff4 {[%clk 00:03:58]} {[%emt
00:10:41]} R6f7 {[%clk 00:17:01]} {[%emt 00:05:31]} 27. Qxg6 {[%clk 00:02:53]}
{[%emt 00:01:36]} Bc8 {[%clk 00:14:19]} {[%emt 00:03:12]} 28. f6 {[%clk
00:02:44]} {[%emt 00:00:38]} b4 {[%clk 00:13:17]} {[%emt 00:01:32]} 29. Rh5
{[%clk 00:02:29]} {[%emt 00:00:46]} Qc7 {[%clk 00:12:27]} {[%emt 00:01:20]} 30.
Rfh4 {[%clk 00:02:25]} {[%emt 00:00:33]} Rg8 {[%clk 00:09:40]} {[%emt
00:03:17]} 31. Qh6 {[%clk 00:02:49]} {[%emt 00:00:07]} Bg4 {[%clk 00:09:23]}
{[%emt 00:00:47]} 32. Rxd5 {[%clk 00:02:24]} {[%emt 00:00:55]} bxc3 {[%clk
00:09:07]} {[%emt 00:00:46]} 33. bxc3 {[%clk 00:02:20]} {[%emt 00:00:33]} Bf3
{[%clk 00:06:44]} {[%emt 00:02:55]} 34. Bxe4 {[%clk 00:01:45]} {[%emt
00:01:04]} Rxg2+ {[%clk 00:06:28]} {[%emt 00:00:45]} 35. Kf1 {[%clk 00:02:09]}
{[%emt 00:00:04]} Bxe4 {[%clk 00:05:19]} {[%emt 00:01:41]} 36. Rxe4 {[%clk
00:02:29]} {[%emt 00:00:11]} Rg8 {[%clk 00:04:54]} {[%emt 00:00:54]} 37. Qf4
{[%clk 00:00:46]} {[%emt 00:02:11]} Qb7 {[%clk 00:04:52]} {[%emt 00:00:34]} 38.
Red4 {[%clk 00:00:44]} {[%emt 00:00:32]} Qb1+ {[%clk 00:04:36]} {[%emt
00:00:46]} 39. Rd1 {[%clk 00:01:07]} {[%emt 00:00:08]} Qg6 {[%clk 00:04:36]}
{[%emt 00:00:31]} 40. Ke1 {[%clk 00:00:47]} {[%emt 00:00:49]} Qg1+ {[%clk
00:01:23]} {[%emt 00:03:41]} 41. Kd2 {[%clk 00:27:12]} {[%emt 00:04:06]} Qg2+
{[%clk 00:31:11]} {[%emt 00:00:41]} 42. Kc1 {[%clk 00:27:39]} {[%emt 00:00:05]}
Qxa2 {[%clk 00:30:01]} {[%emt 00:01:40]} 43. Rd7 {[%clk 00:02:09]} {[%emt
00:26:00]} Rxd7 {[%clk 00:26:02]} {[%emt 00:04:29]} 0-1

[Event "Swedish Chess Championship 2019: Veteran-SM 65+"]
[Site "Stiga Sports Arena, Arenatorget 1, Eskilstuna, Sweden"]
[Date "2019.07.14"]
[Round "9.2"]
[White "Moborn, Anders"]
[Black "Gromark, Jonas"]
[Result "1-0"]
[TimeControl "90 minutes for 40 moves + 30 minutes for the rest of the game + 30 seconds per move from move one"]
[WhiteFideId "1706349"]
[BlackFideId "137122733"]
[WhiteElo "2034"]
[BlackElo "1833"]

1. d4 {[%clk 01:28:00]} {[%emt 00:00:01]} d5 {[%clk 01:29:57]} {[%emt
00:04:13]} 2. c4 {[%clk 01:28:17]} {[%emt 00:00:02]} e6 {[%clk 01:30:10]}
{[%emt 00:00:16]} 3. Nf3 {[%clk 01:28:20]} {[%emt 00:00:28]} Be7 {[%clk
01:30:28]} {[%emt 00:00:12]} 4. Nc3 {[%clk 01:28:29]} {[%emt 00:00:21]} Nf6
{[%clk 01:30:43]} {[%emt 00:00:15]} 5. Bg5 {[%clk 01:27:55]} {[%emt 00:01:04]}
h6 {[%clk 01:30:57]} {[%emt 00:00:15]} 6. Bh4 {[%clk 01:27:51]} {[%emt
00:00:35]} Nbd7 {[%clk 01:29:50]} {[%emt 00:01:36]} 7. e3 {[%clk 01:27:25]}
{[%emt 00:00:56]} c5 {[%clk 01:29:43]} {[%emt 00:00:38]} 8. cxd5 {[%clk
01:25:11]} {[%emt 00:02:44]} Nxd5 {[%clk 01:22:46]} {[%emt 00:07:27]} 9. Bxe7
{[%clk 01:20:46]} {[%emt 00:04:55]} Nxe7 {[%clk 01:21:28]} {[%emt 00:01:47]} 10.
dxc5 {[%clk 01:19:14]} {[%emt 00:02:03]} Qa5 {[%emt 00:06:52]} 11. Qd4 {[%clk
01:11:10]} {[%emt 00:08:30]} Nf5 {[%clk 01:14:06]} {[%emt 00:01:32]} 12. Qa4
{[%clk 01:07:19]} {[%emt 00:04:22]} Qxc5 {[%clk 01:09:53]} {[%emt 00:04:44]} 13.
Ne4 {[%clk 01:03:20]} {[%emt 00:04:28]} Qc7 {[%clk 01:04:09]} {[%emt 00:06:14]}
14. Qa3 {[%clk 00:58:21]} {[%emt 00:05:29]} Nf6 {[%clk 00:50:14]} {[%emt
00:14:25]} 15. Nc3 {[%clk 00:45:23]} {[%emt 00:13:28]} Qd6 {[%clk 00:43:06]}
{[%emt 00:07:38]} 16. Qa4+ {[%clk 00:43:27]} {[%emt 00:02:26]} Bd7 {[%clk
00:42:15]} {[%emt 00:01:21]} 17. Bb5 {[%clk 00:42:37]} {[%emt 00:01:20]} O-O
{[%clk 00:37:44]} {[%emt 00:05:02]} 18. e4 {[%clk 00:41:54]} {[%emt 00:01:12]}
Bxb5 {[%clk 00:33:45]} {[%emt 00:04:30]} 19. Qxb5 {[%clk 00:30:12]} {[%emt
00:12:12]} Nd4 {[%clk 00:26:10]} {[%emt 00:08:04]} 20. Nxd4 {[%clk 00:30:08]}
{[%emt 00:00:34]} Qxd4 {[%clk 00:26:38]} {[%emt 00:00:02]} 21. Rd1 {[%clk
00:28:45]} {[%emt 00:01:53]} Qb6 {[%clk 00:22:00]} {[%emt 00:05:08]} 22. Qxb6
{[%clk 00:28:27]} {[%emt 00:00:49]} axb6 {[%clk 00:22:29]} {[%emt 00:00:01]} 23.
Ke2 {[%clk 00:28:27]} {[%emt 00:00:30]} Rfd8 {[%clk 00:21:27]} {[%emt
00:01:31]} 24. f3 {[%clk 00:27:30]} {[%emt 00:01:27]} Kf8 {[%clk 00:21:15]}
{[%emt 00:00:42]} 25. e5 {[%clk 00:19:48]} {[%emt 00:08:13]} Nd7 {[%clk
00:17:12]} {[%emt 00:04:32]} 26. f4 {[%clk 00:19:28]} {[%emt 00:00:50]} f6
{[%clk 00:13:57]} {[%emt 00:03:45]} 27. exf6 {[%clk 00:18:23]} {[%emt
00:01:35]} gxf6 {[%clk 00:13:52]} {[%emt 00:00:35]} 28. Rd6 {[%clk 00:12:46]}
{[%emt 00:06:08]} Ke7 {[%clk 00:12:03]} {[%emt 00:02:19]} 29. Rhd1 {[%clk
00:13:03]} {[%emt 00:00:13]} Rac8 {[%clk 00:11:26]} {[%emt 00:01:07]} 30. Kf3
{[%clk 00:11:24]} {[%emt 00:02:09]} Rc6 {[%clk 00:10:58]} {[%emt 00:00:59]} 31.
R6d2 {[%clk 00:10:22]} {[%emt 00:01:31]} Rcc8 {[%clk 00:09:17]} {[%emt
00:02:12]} 32. Ne4 {[%clk 00:09:27]} {[%emt 00:01:25]} f5 {[%clk 00:06:59]}
{[%emt 00:02:48]} 33. Nd6 {[%clk 00:07:08]} {[%emt 00:02:48]} Nf6 {[%clk
00:04:00]} {[%emt 00:03:30]} 34. Nxc8+ {[%clk 00:07:12]} {[%emt 00:00:25]} 1-0

[Event "Swedish Chess Championship 2019: Veteran-SM 65+"]
[Site "Stiga Sports Arena, Arenatorget 1, Eskilstuna, Sweden"]
[Date "2019.07.14"]
[Round "9.3"]
[White "Lagerborg, Krister"]
[Black "Adolfsson, Kjell"]
[Result "1-0"]
[TimeControl "90 minutes for 40 moves + 30 minutes for the rest of the game + 30 seconds per move from move one"]
[WhiteFideId "1712411"]
[BlackFideId "1714961"]
[WhiteElo "2129"]
[BlackElo "1895"]

1. e4 {[%clk 01:30:55]} {[%emt 00:00:04]} b6 {[%clk 01:30:36]} {[%emt
00:00:24]} 2. f4 {[%clk 01:30:06]} {[%emt 00:01:41]} Bb7 {[%clk 01:30:43]}
{[%emt 00:00:45]} 3. d3 {[%clk 01:30:17]} {[%emt 00:01:14]} e6 {[%clk
01:30:29]} 4. Nf3 {[%clk 01:30:10]} {[%emt 00:00:03]} d6 {[%clk 01:28:22]}
{[%emt 00:02:15]} 5. g3 {[%clk 01:30:09]} {[%emt 00:00:32]} Nd7 {[%clk
01:28:23]} {[%emt 00:00:27]} 6. Bg2 {[%clk 01:30:13]} {[%emt 00:00:27]} Be7
{[%clk 01:26:34]} {[%emt 00:02:19]} 7. O-O {[%clk 01:29:55]} {[%emt 00:00:49]}
c5 {[%clk 01:22:37]} {[%emt 00:04:26]} 8. Qe2 {[%clk 01:29:10]} {[%emt
00:01:15]} Qc7 {[%clk 01:21:21]} {[%emt 00:01:46]} 9. c3 {[%clk 01:28:23]}
{[%emt 00:01:17]} Ngf6 {[%clk 01:10:28]} {[%emt 00:11:23]} 10. Nbd2 {[%clk
01:26:29]} {[%emt 00:02:23]} O-O {[%clk 01:05:25]} {[%emt 00:05:32]} 11. h3
{[%clk 01:23:19]} {[%emt 00:03:41]} h6 {[%clk 00:56:58]} {[%emt 00:08:57]} 12.
g4 {[%clk 01:19:54]} {[%emt 00:03:55]} Nh7 {[%clk 00:52:38]} {[%emt 00:04:50]}
13. Rf2 {[%clk 01:14:04]} {[%emt 00:06:20]} e5 {[%clk 00:43:24]} {[%emt
00:09:43]} 14. f5 {[%clk 01:10:39]} {[%emt 00:03:56]} g5 {[%clk 00:37:14]}
{[%emt 00:06:39]} 15. c4 {[%clk 01:08:00]} {[%emt 00:03:10]} Nb8 {[%clk
00:27:53]} {[%emt 00:09:51]} 16. Nf1 {[%clk 01:06:01]} {[%emt 00:02:30]} f6
{[%clk 00:24:54]} {[%emt 00:03:28]} 17. Ne3 {[%clk 01:01:21]} {[%emt 00:05:10]}
Bd8 {[%clk 00:20:05]} {[%emt 00:05:19]} 18. Nd2 {[%clk 00:58:38]} Nc6 {[%clk
00:19:22]} {[%emt 00:04:27]} 19. Nb1 {[%clk 00:57:00]} Nd4 {[%clk 00:16:18]}
{[%emt 00:05:42]} 20. Qd1 {[%clk 00:57:15]} Qd7 {[%clk 00:15:07]} {[%emt
00:01:56]} 21. Nc3 {[%clk 00:56:47]} Rf7 {[%clk 00:14:59]} {[%emt 00:01:36]} 22.
Ned5 {[%clk 00:55:13]} Bc6 {[%clk 00:15:02]} {[%emt 00:02:31]} 23. Be3 {[%clk
00:51:08]} {[%emt 00:03:39]} Qe8 24. Bf3 {[%clk 00:44:15]} {[%emt 00:03:37]}
Rb7 {[%clk 00:12:49]} 25. Qd2 {[%clk 00:42:37]} {[%emt 00:10:19]} a6 {[%clk
00:12:48]} 26. Kg2 {[%emt 00:04:20]} b5 27. Ne2 {[%clk 00:39:53]} {[%emt
00:00:10]} Rab8 {[%emt 00:05:57]} 28. cxb5 {[%clk 00:36:31]} {[%emt 00:00:10]}
Rxb5 {[%emt 00:03:56]} 29. Bxd4 {[%emt 00:00:48]} exd4 {[%clk 00:09:16]} {[%emt
00:01:59]} 30. b3 {[%clk 00:32:54]} {[%emt 00:00:41]} Ba5 {[%clk 00:08:22]}
{[%emt 00:01:23]} 31. Qc2 {[%clk 00:31:58]} {[%emt 00:01:26]} R5b7 {[%clk
00:07:29]} {[%emt 00:01:24]} 32. Qc4 {[%clk 00:29:12]} {[%emt 00:03:17]} Qf7
{[%clk 00:07:35]} {[%emt 00:00:24]} 33. Qxa6 {[%clk 00:26:34]} {[%emt
00:03:08]} Bxd5 {[%clk 00:06:28]} {[%emt 00:01:37]} 34. exd5 {[%clk 00:24:34]}
{[%emt 00:02:30]} Bc7 {[%clk 00:06:05]} {[%emt 00:00:53]} 35. Ng3 {[%clk
00:23:18]} {[%emt 00:01:45]} Rb6 {[%clk 00:05:15]} {[%emt 00:01:21]} 36. Qc4
{[%clk 00:22:45]} {[%emt 00:01:02]} Nf8 {[%clk 00:05:38]} {[%emt 00:00:09]} 37.
Be4 {[%clk 00:21:41]} {[%emt 00:01:32]} Nd7 {[%clk 00:05:47]} {[%emt 00:00:22]}
38. Qc2 {[%clk 00:21:15]} {[%emt 00:00:56]} R6b7 {[%clk 00:04:30]} {[%emt
00:01:47]} 39. Qe2 {[%clk 00:20:14]} {[%emt 00:01:31]} Ra7 {[%clk 00:03:56]}
{[%emt 00:01:04]} 40. Rh1 {[%clk 00:18:05]} {[%emt 00:02:38]} Ra3 {[%clk
00:03:03]} {[%emt 00:01:24]} 41. h4 {[%clk 00:17:58]} {[%emt 00:00:37]} Rba8
{[%clk 00:01:48]} {[%emt 00:01:46]} 42. hxg5 {[%clk 00:18:09]} {[%emt
00:00:19]} hxg5 {[%clk 00:29:55]} {[%emt 00:02:22]} 43. Kg1 {[%clk 00:45:26]}
{[%emt 00:03:13]} Ne5 {[%clk 00:25:36]} {[%emt 00:04:49]} 44. Rfh2 {[%clk
00:37:33]} {[%emt 00:08:23]} Qg7 {[%clk 00:24:27]} {[%emt 00:01:39]} 45. Nf1
{[%clk 00:36:20]} {[%emt 00:01:43]} Rxa2 {[%clk 00:20:09]} {[%emt 00:04:49]} 46.
Qxa2 {[%clk 00:36:26]} {[%emt 00:00:24]} Rxa2 {[%clk 00:20:28]} {[%emt
00:00:10]} 47. Rxa2 {[%clk 00:36:52]} {[%emt 00:00:04]} Nxg4 {[%clk 00:19:43]}
{[%emt 00:01:15]} 48. Ra8+ {[%clk 00:37:02]} {[%emt 00:00:21]} Kf7 {[%clk
00:19:17]} {[%emt 00:00:56]} 49. Rah8 {[%clk 00:37:18]} {[%emt 00:00:15]} 1-0

[Event "Swedish Chess Championship 2019: Veteran-SM 65+"]
[Site "Stiga Sports Arena, Arenatorget 1, Eskilstuna, Sweden"]
[Date "2019.07.14"]
[Round "9.4"]
[White "Wedin, Svante"]
[Black "Gajic, Zoran"]
[Result "1-0"]
[TimeControl "90 minutes for 40 moves + 30 minutes for the rest of the game + 30 seconds per move from move one"]
[WhiteFideId "1711989"]
[BlackFideId "1718304"]
[WhiteElo "2003"]
[BlackElo "1936"]

1. e4 {[%clk 01:30:58]} {[%emt 00:00:01]} g6 {[%clk 01:30:55]} {[%emt
00:00:05]} 2. d4 {[%clk 01:31:20]} {[%emt 00:00:07]} Bg7 {[%clk 01:31:17]}
{[%emt 00:00:09]} 3. f4 {[%clk 01:31:25]} {[%emt 00:00:25]} d6 {[%clk
01:31:22]} {[%emt 00:00:25]} 4. Nf3 {[%clk 01:31:39]} {[%emt 00:00:18]} Nd7
{[%clk 01:29:35]} {[%emt 00:02:41]} 5. Be2 {[%clk 01:30:59]} {[%emt 00:00:44]}
e6 {[%clk 01:29:49]} {[%emt 00:00:16]} 6. O-O {[%clk 01:29:15]} {[%emt
00:02:14]} Ne7 {[%clk 01:30:15]} {[%emt 00:00:04]} 7. Nc3 {[%clk 01:25:41]}
{[%emt 00:04:04]} O-O {[%clk 01:29:30]} {[%emt 00:01:16]} 8. Be3 {[%clk
01:23:37]} {[%emt 00:02:33]} d5 {[%clk 01:26:57]} {[%emt 00:03:04]} 9. e5
{[%clk 01:16:00]} {[%emt 00:08:06]} f6 {[%clk 01:12:58]} {[%emt 00:14:29]} 10.
g4 {[%clk 01:03:47]} {[%emt 00:12:43]} fxe5 {[%clk 01:12:34]} {[%emt 00:00:55]}
11. fxe5 {[%clk 01:03:04]} {[%emt 00:01:13]} c5 {[%clk 01:12:34]} {[%emt
00:00:30]} 12. Ng5 {[%clk 00:59:08]} {[%emt 00:04:25]} Nxe5 {[%clk 01:12:47]}
{[%emt 00:00:18]} 13. Rxf8+ {[%clk 00:49:32]} {[%emt 00:10:06]} Qxf8 {[%clk
01:12:22]} {[%emt 00:00:55]} 14. dxe5 {[%clk 00:48:04]} {[%emt 00:01:57]} d4
{[%clk 01:03:08]} {[%emt 00:09:44]} 15. Nce4 {[%clk 00:45:11]} {[%emt
00:03:23]} Bxe5 {[%clk 01:03:20]} {[%emt 00:00:19]} 16. Qf1 {[%clk 00:36:24]}
{[%emt 00:09:17]} Qxf1+ {[%clk 00:43:50]} {[%emt 00:20:00]} 17. Rxf1 {[%clk
00:36:32]} {[%emt 00:00:22]} dxe3 {[%clk 00:44:14]} {[%emt 00:00:06]} 18. Nxh7
{[%clk 00:23:10]} {[%emt 00:13:51]} Nd5 {[%clk 00:40:25]} {[%emt 00:04:20]} 19.
Nhf6+ {[%clk 00:20:43]} {[%emt 00:02:57]} Kh8 {[%clk 00:27:28]} {[%emt
00:13:27]} 20. Nxd5 {[%clk 00:17:06]} {[%emt 00:04:07]} exd5 {[%clk 00:24:50]}
{[%emt 00:03:08]} 21. Nxc5 {[%clk 00:17:16]} {[%emt 00:00:20]} Bxb2 {[%clk
00:17:02]} {[%emt 00:08:18]} 22. Rf8+ {[%clk 00:15:30]} {[%emt 00:02:15]} Kg7
{[%clk 00:12:28]} {[%emt 00:05:05]} 23. Ne6+ {[%clk 00:14:38]} {[%emt
00:01:21]} Bxe6 {[%clk 00:12:53]} {[%emt 00:00:05]} 24. Rxa8 {[%clk 00:14:58]}
{[%emt 00:00:11]} Kf6 {[%clk 00:12:51]} {[%emt 00:00:32]} 25. Rxa7 {[%clk
00:13:27]} {[%emt 00:02:01]} b6 {[%clk 00:12:13]} {[%emt 00:01:08]} 26. Ra4
{[%clk 00:10:58]} {[%emt 00:02:58]} Ke5 {[%clk 00:12:05]} {[%emt 00:00:38]} 27.
Kg2 {[%clk 00:08:32]} {[%emt 00:02:57]} Bc3 {[%clk 00:11:27]} {[%emt 00:01:08]}
28. Kf3 {[%clk 00:04:36]} {[%emt 00:04:25]} d4 {[%clk 00:10:25]} {[%emt
00:01:32]} 29. Bc4 {[%clk 00:04:45]} {[%emt 00:00:22]} Bd7 {[%clk 00:10:15]}
{[%emt 00:00:40]} 30. Ra7 {[%clk 00:04:31]} {[%emt 00:00:44]} Bc6+ {[%clk
00:10:07]} {[%emt 00:00:37]} 31. Ke2 {[%clk 00:04:12]} {[%emt 00:00:49]} Kf4
{[%clk 00:10:30]} {[%emt 00:00:06]} 32. Rf7+ {[%clk 00:04:19]} {[%emt
00:00:24]} Kxg4 {[%clk 00:10:43]} {[%emt 00:00:18]} 33. Bd3 {[%clk 00:03:55]}
{[%emt 00:00:54]} g5 {[%clk 00:06:54]} {[%emt 00:04:18]} 34. Bf5+ {[%clk
00:03:58]} {[%emt 00:00:27]} 1-0